[Event "Early-Titled-Tuesday-Blitz-January-16-2024"]
[Site "Chess.com"]
[Date "2024.01.16"]
[Round "7"]
[White "deepfear"]
[Black "KevinGeorgeMicheal"]
[Result "1/2-1/2"]
[WhiteElo "1934"]
[BlackElo "2217"]
[TimeControl "180+1"]
[EndTime "9:23:02 PST"]
[Termination "Game drawn by repetition"]

1. e4 {[%clk 0:02:52]} 1... c6 {[%clk 0:02:50]} 2. d4 {[%clk 0:02:51.1]} 2... d5
{[%clk 0:02:45.6]} 3. exd5 {[%clk 0:02:52]} 3... cxd5 {[%clk 0:02:41.8]} 4. Bd3
{[%clk 0:02:52.2]} 4... Nf6 {[%clk 0:02:41.1]} 5. c3 {[%clk 0:02:42]} 5... Nc6
{[%clk 0:02:41.2]} 6. Bf4 {[%clk 0:02:41.3]} 6... Bg4 {[%clk 0:02:39.6]} 7. Qb3
{[%clk 0:02:41.1]} 7... Qd7 {[%clk 0:02:39.5]} 8. Nd2 {[%clk 0:02:38.6]} 8... e6
{[%clk 0:02:34.4]} 9. Ngf3 {[%clk 0:02:37.9]} 9... Bd6 {[%clk 0:02:34]} 10. Ne5
{[%clk 0:02:33.2]} 10... Bxe5 {[%clk 0:02:30.5]} 11. Bxe5 {[%clk 0:02:05.1]}
11... a6 {[%clk 0:02:28.5]} 12. O-O {[%clk 0:02:02.4]} 12... Nxe5 {[%clk
0:01:42.5]} 13. dxe5 {[%clk 0:02:03.3]} 13... Ng8 {[%clk 0:01:41.4]} 14. f4
{[%clk 0:01:47]} 14... Ne7 {[%clk 0:01:40.8]} 15. Nf3 {[%clk 0:01:43]} 15... Bf5
{[%clk 0:01:38.1]} 16. Rfd1 {[%clk 0:01:35.6]} 16... Bxd3 {[%clk 0:01:37.1]} 17.
Rxd3 {[%clk 0:01:36.5]} 17... O-O {[%clk 0:01:36]} 18. Rad1 {[%clk 0:01:34.6]}
18... Qc7 {[%clk 0:01:31.5]} 19. Nd4 {[%clk 0:01:07.3]} 19... Nc6 {[%clk
0:01:30.2]} 20. Rf3 {[%clk 0:01:01.9]} 20... Nxd4 {[%clk 0:01:26.8]} 21. Rxd4
{[%clk 0:01:00.3]} 21... Rfc8 {[%clk 0:01:20.4]} 22. Qc2 {[%clk 0:00:43.3]}
22... Qc5 {[%clk 0:01:16.9]} 23. Qd3 {[%clk 0:00:40.1]} 23... Qb5 {[%clk
0:01:10.1]} 24. Qxb5 {[%clk 0:00:35.9]} 24... axb5 {[%clk 0:01:09.4]} 25. a3
{[%clk 0:00:36]} 25... Rc4 {[%clk 0:01:08.5]} 26. Rfd3 {[%clk 0:00:34.1]} 26...
Kf8 {[%clk 0:00:57.7]} 27. Kf2 {[%clk 0:00:21.2]} 27... Ke7 {[%clk 0:00:55.6]}
28. Ke3 {[%clk 0:00:20.7]} 28... Raa4 {[%clk 0:00:53.1]} 29. g4 {[%clk
0:00:20.5]} 29... Kd7 {[%clk 0:00:47.9]} 30. h4 {[%clk 0:00:20.1]} 30... Kc6
{[%clk 0:00:46.4]} 31. Rxc4+ {[%clk 0:00:19.5]} 31... bxc4 {[%clk 0:00:44.1]}
32. Rd2 {[%clk 0:00:18]} 32... Ra8 {[%clk 0:00:40.2]} 33. f5 {[%clk 0:00:17.5]}
33... Kb5 {[%clk 0:00:38.7]} 34. Kf4 {[%clk 0:00:15.8]} 34... Ka4 {[%clk
0:00:38.1]} 35. g5 {[%clk 0:00:14.5]} 35... Kb3 {[%clk 0:00:36.9]} 36. h5 {[%clk
0:00:13.5]} 36... Re8 {[%clk 0:00:30]} 37. f6 {[%clk 0:00:11.5]} 37... g6 {[%clk
0:00:27.5]} 38. hxg6 {[%clk 0:00:11.7]} 38... hxg6 {[%clk 0:00:26.4]} 39. Rh2
{[%clk 0:00:12.2]} 39... Rd8 {[%clk 0:00:23.4]} 40. Ke3 {[%clk 0:00:12.5]} 40...
b5 {[%clk 0:00:20.1]} 41. Kd4 {[%clk 0:00:12.5]} 41... Rc8 {[%clk 0:00:18.9]}
42. Rh7 {[%clk 0:00:07.1]} 42... Rc7 {[%clk 0:00:18]} 43. Rh2 {[%clk 0:00:05.4]}
43... Ka4 {[%clk 0:00:14.5]} 44. Rh7 {[%clk 0:00:04.9]} 44... Kb3 {[%clk
0:00:11.7]} 45. Rh2 {[%clk 0:00:04.8]} 45... Ka2 {[%clk 0:00:11.8]} 46. Rg2
{[%clk 0:00:04.3]} 46... Kb3 {[%clk 0:00:09.2]} 47. Rh2 {[%clk 0:00:04.3]}
1/2-1/2

[Event "Early-Titled-Tuesday-Blitz-January-16-2024"]
[Site "Chess.com"]
[Date "2024.01.16"]
[Round "7"]
[White "GothamChess"]
[Black "rikchessmx"]
[Result "1-0"]
[WhiteElo "2721"]
[BlackElo "2361"]
[TimeControl "180+1"]
[EndTime "9:23:04 PST"]
[Termination "GothamChess won by checkmate"]

1. e4 {[%clk 0:02:58.8]} 1... e5 {[%clk 0:02:53.8]} 2. Nc3 {[%clk 0:02:58.6]}
2... Nc6 {[%clk 0:02:54.1]} 3. Bc4 {[%clk 0:02:58]} 3... d6 {[%clk 0:02:54.1]}
4. d3 {[%clk 0:02:58.2]} 4... Nf6 {[%clk 0:02:52.8]} 5. f4 {[%clk 0:02:58.4]}
5... exf4 {[%clk 0:02:52.2]} 6. Bxf4 {[%clk 0:02:58.1]} 6... Na5 {[%clk
0:02:50.4]} 7. Bb3 {[%clk 0:02:56.2]} 7... Nxb3 {[%clk 0:02:50.2]} 8. axb3
{[%clk 0:02:56.5]} 8... Be7 {[%clk 0:02:50.7]} 9. Nf3 {[%clk 0:02:56.4]} 9...
O-O {[%clk 0:02:50.2]} 10. O-O {[%clk 0:02:56.9]} 10... a6 {[%clk 0:02:50.1]}
11. Kh1 {[%clk 0:02:49.7]} 11... c6 {[%clk 0:02:39.5]} 12. Qd2 {[%clk
0:02:45.7]} 12... Nh5 {[%clk 0:02:37.4]} 13. Bg5 {[%clk 0:02:41.4]} 13... Bxg5
{[%clk 0:02:36.7]} 14. Nxg5 {[%clk 0:02:41.1]} 14... h6 {[%clk 0:02:34.3]} 15.
Nf3 {[%clk 0:02:37.9]} 15... Qe7 {[%clk 0:02:32.9]} 16. Rf2 {[%clk 0:02:34.6]}
16... Nf6 {[%clk 0:02:29.7]} 17. h3 {[%clk 0:02:30.3]} 17... Nh5 {[%clk
0:02:27.7]} 18. g4 {[%clk 0:02:21.7]} 18... Nf6 {[%clk 0:02:18.9]} 19. Raf1
{[%clk 0:02:19.6]} 19... Nh7 {[%clk 0:02:17.5]} 20. Qf4 {[%clk 0:02:07.9]} 20...
f6 {[%clk 0:02:13]} 21. h4 {[%clk 0:02:00.9]} 21... Bd7 {[%clk 0:02:04.2]} 22.
Ne2 {[%clk 0:01:52.7]} 22... g5 {[%clk 0:01:40.8]} 23. Qg3 {[%clk 0:01:50.5]}
23... c5 {[%clk 0:01:35.9]} 24. h5 {[%clk 0:01:37.9]} 24... b5 {[%clk
0:01:32.8]} 25. Re1 {[%clk 0:01:29.1]} 25... Bc6 {[%clk 0:01:32.2]} 26. Kh2
{[%clk 0:01:28.6]} 26... Rf7 {[%clk 0:01:24.9]} 27. Nc3 {[%clk 0:01:21.4]} 27...
Re8 {[%clk 0:01:15.1]} 28. d4 {[%clk 0:01:06.4]} 28... Qc7 {[%clk 0:00:33.9]}
29. d5 {[%clk 0:00:34.4]} 29... Bb7 {[%clk 0:00:21]} 30. Rfe2 {[%clk 0:00:30.5]}
30... Bc8 {[%clk 0:00:18.1]} 31. Kg2 {[%clk 0:00:29.5]} 31... b4 {[%clk
0:00:18]} 32. Nd1 {[%clk 0:00:29]} 32... Qd7 {[%clk 0:00:17.4]} 33. Nf2 {[%clk
0:00:23]} 33... a5 {[%clk 0:00:17.3]} 34. Nd2 {[%clk 0:00:21.5]} 34... Ba6
{[%clk 0:00:17.3]} 35. Re3 {[%clk 0:00:21.3]} 35... Rfe7 {[%clk 0:00:15.3]} 36.
Ra1 {[%clk 0:00:20.2]} 36... Qc7 {[%clk 0:00:13.5]} 37. Nc4 {[%clk 0:00:20.5]}
37... Bxc4 {[%clk 0:00:12.4]} 38. bxc4 {[%clk 0:00:21.4]} 38... Qb6 {[%clk
0:00:11.1]} 39. b3 {[%clk 0:00:21.6]} 39... Ra8 {[%clk 0:00:10.4]} 40. Rf1
{[%clk 0:00:18.5]} 40... Rea7 {[%clk 0:00:10.3]} 41. e5 {[%clk 0:00:15.6]} 41...
dxe5 {[%clk 0:00:09.9]} 42. Ne4 {[%clk 0:00:16]} 42... Rf7 {[%clk 0:00:08.6]}
43. Qf2 {[%clk 0:00:15.1]} 43... Raf8 {[%clk 0:00:07.6]} 44. Rf3 {[%clk
0:00:15.3]} 44... Kg7 {[%clk 0:00:06.9]} 45. Qxc5 {[%clk 0:00:14.4]} 45... Qxc5
{[%clk 0:00:06.6]} 46. Nxc5 {[%clk 0:00:15.3]} 46... a4 {[%clk 0:00:05.5]} 47.
Ne6+ {[%clk 0:00:15.5]} 47... Kg8 {[%clk 0:00:04.9]} 48. Nxf8 {[%clk 0:00:16.2]}
48... Kxf8 {[%clk 0:00:04.7]} 49. bxa4 {[%clk 0:00:16.8]} 49... Ke8 {[%clk
0:00:04.8]} 50. a5 {[%clk 0:00:16.8]} 50... Kd7 {[%clk 0:00:05.1]} 51. c5 {[%clk
0:00:17.2]} 51... Kc7 {[%clk 0:00:04.8]} 52. a6 {[%clk 0:00:17.8]} 52... Kb8
{[%clk 0:00:04.4]} 53. c6 {[%clk 0:00:16.2]} 53... Ka7 {[%clk 0:00:04.4]} 54. d6
{[%clk 0:00:16.7]} 54... Kb6 {[%clk 0:00:04.2]} 55. d7 {[%clk 0:00:16.8]} 55...
Kc7 {[%clk 0:00:03]} 56. a7 {[%clk 0:00:16.8]} 56... Rf8 {[%clk 0:00:02.8]} 57.
Rxf6 {[%clk 0:00:12.7]} 57... Nxf6 {[%clk 0:00:02.1]} 58. Rxf6 {[%clk
0:00:13.1]} 58... Rxf6 {[%clk 0:00:02.3]} 59. a8=Q {[%clk 0:00:13]} 59... Rxc6
{[%clk 0:00:02.9]} 60. d8=Q# {[%clk 0:00:12.8]} 1-0

[Event "Early-Titled-Tuesday-Blitz-January-16-2024"]
[Site "Chess.com"]
[Date "2024.01.16"]
[Round "7"]
[White "Ducke13"]
[Black "C_K_G"]
[Result "1-0"]
[WhiteElo "2329"]
[BlackElo "2034"]
[TimeControl "180+1"]
[EndTime "9:23:04 PST"]
[Termination "Ducke13 won on time"]

1. d4 {[%clk 0:03:00.9]} 1... d5 {[%clk 0:02:52.7]} 2. g3 {[%clk 0:02:59.7]}
2... e6 {[%clk 0:02:53.3]} 3. Bg2 {[%clk 0:02:58.3]} 3... Nf6 {[%clk 0:02:54.2]}
4. Nf3 {[%clk 0:02:58.7]} 4... c5 {[%clk 0:02:54.5]} 5. O-O {[%clk 0:02:58.9]}
5... Nc6 {[%clk 0:02:54.4]} 6. c4 {[%clk 0:02:59]} 6... cxd4 {[%clk 0:02:54.4]}
7. cxd5 {[%clk 0:02:53.8]} 7... Qxd5 {[%clk 0:02:53.9]} 8. Nxd4 {[%clk
0:02:51.7]} 8... Qc5 {[%clk 0:02:34]} 9. Nxc6 {[%clk 0:02:48.2]} 9... bxc6
{[%clk 0:02:33.6]} 10. Be3 {[%clk 0:02:41.5]} 10... Qc4 {[%clk 0:02:23.3]} 11.
Nd2 {[%clk 0:02:38.3]} 11... Qa6 {[%clk 0:02:20.1]} 12. Rc1 {[%clk 0:02:29.9]}
12... Bd7 {[%clk 0:02:12.6]} 13. Nc4 {[%clk 0:02:30.1]} 13... Nd5 {[%clk
0:02:06.5]} 14. Ne5 {[%clk 0:02:18.5]} 14... Rd8 {[%clk 0:01:52.8]} 15. Qd4
{[%clk 0:01:42.9]} 15... f6 {[%clk 0:01:26.3]} 16. Nxd7 {[%clk 0:01:18.3]} 16...
Rxd7 {[%clk 0:01:27.2]} 17. Qg4 {[%clk 0:00:59.2]} 17... Kf7 {[%clk 0:01:14.4]}
18. h4 {[%clk 0:00:48.9]} 18... Nxe3 {[%clk 0:00:49.6]} 19. fxe3 {[%clk
0:00:48.5]} 19... Qb6 {[%clk 0:00:41.4]} 20. Rxc6 {[%clk 0:00:42.4]} 20... Qxe3+
{[%clk 0:00:41]} 21. Kh1 {[%clk 0:00:39.7]} 21... Bd6 {[%clk 0:00:34.6]} 22. Rf3
{[%clk 0:00:38.4]} 22... Qe5 {[%clk 0:00:24.1]} 23. Rd3 {[%clk 0:00:34.1]} 23...
Rhd8 {[%clk 0:00:20.5]} 24. h5 {[%clk 0:00:27.3]} 24... Bb8 {[%clk 0:00:19.4]}
25. Rxd7+ {[%clk 0:00:18.7]} 25... Rxd7 {[%clk 0:00:20.3]} 26. Kh2 {[%clk
0:00:17]} 26... Rd2 {[%clk 0:00:18.8]} 27. Bf3 {[%clk 0:00:14.8]} 27... Rd1
{[%clk 0:00:18.7]} 28. Kh3 {[%clk 0:00:12.5]} 28... Rg1 {[%clk 0:00:17.1]} 29.
Bg2 {[%clk 0:00:10.7]} 29... f5 {[%clk 0:00:14.6]} 30. Qf3 {[%clk 0:00:06.6]}
30... Qf6 {[%clk 0:00:10.3]} 31. Rc8 {[%clk 0:00:04.3]} 31... Bd6 {[%clk
0:00:09.6]} 32. Ra8 {[%clk 0:00:04]} 32... Bc5 {[%clk 0:00:09]} 33. Rc8 {[%clk
0:00:03.3]} 33... Be7 {[%clk 0:00:08.9]} 34. Rc7 {[%clk 0:00:03.3]} 34... g5
{[%clk 0:00:07]} 35. hxg6+ {[%clk 0:00:02.6]} 35... hxg6 {[%clk 0:00:07.4]} 36.
Kh2 {[%clk 0:00:02.6]} 36... Rb1 {[%clk 0:00:06.3]} 37. Rxa7 {[%clk 0:00:02.4]}
37... g5 {[%clk 0:00:06.6]} 38. Qh5+ {[%clk 0:00:01]} 38... Kg7 {[%clk
0:00:07.1]} 39. Rb7 {[%clk 0:00:01.1]} 39... Ra1 {[%clk 0:00:02.8]} 40. a3
{[%clk 0:00:01.1]} 40... Rc1 {[%clk 0:00:03.2]} 41. a4 {[%clk 0:00:01.2]} 41...
Rc2 {[%clk 0:00:03.3]} 42. b3 {[%clk 0:00:01.2]} 42... g4 {[%clk 0:00:03.3]} 43.
Qh4 {[%clk 0:00:01.5]} 43... Qxh4+ {[%clk 0:00:02.2]} 44. gxh4 {[%clk
0:00:02.4]} 44... Kf6 {[%clk 0:00:02.7]} 45. h5 {[%clk 0:00:02.6]} 45... Rxe2
{[%clk 0:00:02.9]} 46. h6 {[%clk 0:00:03]} 46... Bd6+ {[%clk 0:00:01.8]} 47. Kg1
{[%clk 0:00:03]} 1-0

[Event "Early-Titled-Tuesday-Blitz-January-16-2024"]
[Site "Chess.com"]
[Date "2024.01.16"]
[Round "7"]
[White "KNVB"]
[Black "GalaxyRoman"]
[Result "1-0"]
[WhiteElo "2698"]
[BlackElo "2863"]
[TimeControl "180+1"]
[EndTime "9:23:06 PST"]
[Termination "KNVB won by resignation"]

1. d4 {[%clk 0:03:00.9]} 1... Nf6 {[%clk 0:02:56.5]} 2. Bf4 {[%clk 0:03:00.4]}
2... b6 {[%clk 0:02:51.7]} 3. e3 {[%clk 0:03:00.2]} 3... Bb7 {[%clk 0:02:51.9]}
4. h3 {[%clk 0:02:59.6]} 4... g6 {[%clk 0:02:47.5]} 5. Nf3 {[%clk 0:02:59.7]}
5... Bg7 {[%clk 0:02:48.1]} 6. Be2 {[%clk 0:03:00]} 6... d6 {[%clk 0:02:48.8]}
7. O-O {[%clk 0:03:00]} 7... O-O {[%clk 0:02:49.3]} 8. Bh2 {[%clk 0:02:59.7]}
8... Nbd7 {[%clk 0:02:49.7]} 9. a4 {[%clk 0:02:54.4]} 9... a6 {[%clk 0:02:49.1]}
10. Re1 {[%clk 0:02:46.7]} 10... Re8 {[%clk 0:02:44.1]} 11. c4 {[%clk
0:02:43.1]} 11... e5 {[%clk 0:02:44]} 12. a5 {[%clk 0:02:36.5]} 12... Qe7 {[%clk
0:02:30.3]} 13. axb6 {[%clk 0:02:35.7]} 13... cxb6 {[%clk 0:02:30.2]} 14. Nc3
{[%clk 0:02:35.8]} 14... h5 {[%clk 0:02:23.6]} 15. Qb3 {[%clk 0:02:13.5]} 15...
Rab8 {[%clk 0:02:20.5]} 16. Qa3 {[%clk 0:01:56.9]} 16... Nh7 {[%clk 0:02:12.9]}
17. Nd5 {[%clk 0:01:37.6]} 17... Bxd5 {[%clk 0:02:12.3]} 18. cxd5 {[%clk
0:01:38.5]} 18... a5 {[%clk 0:01:56.2]} 19. Bb5 {[%clk 0:01:32.8]} 19... Red8
{[%clk 0:01:37.1]} 20. Rac1 {[%clk 0:01:05.2]} 20... Rbc8 {[%clk 0:01:29.3]} 21.
Rc6 {[%clk 0:00:59]} 21... Nb8 {[%clk 0:00:43.6]} 22. Rxc8 {[%clk 0:00:52.1]}
22... Rxc8 {[%clk 0:00:43.8]} 23. dxe5 {[%clk 0:00:52.6]} 23... Rc5 {[%clk
0:00:41.3]} 24. exd6 {[%clk 0:00:45.6]} 24... Qd8 {[%clk 0:00:41.7]} 25. Qa4
{[%clk 0:00:22.8]} 25... Rxd5 {[%clk 0:00:32.5]} 26. e4 {[%clk 0:00:22.9]} 26...
Rc5 {[%clk 0:00:32.6]} 27. e5 {[%clk 0:00:20.6]} 27... Nf8 {[%clk 0:00:31.6]}
28. Bf4 {[%clk 0:00:16.4]} 28... Nbd7 {[%clk 0:00:15.5]} 29. Be3 {[%clk
0:00:12.9]} 29... Rc8 {[%clk 0:00:15.6]} 30. Qe4 {[%clk 0:00:10.1]} 30... Nc5
{[%clk 0:00:13.7]} 31. Qd5 {[%clk 0:00:10.2]} 31... Nfe6 {[%clk 0:00:13.7]} 32.
Nd4 {[%clk 0:00:08.7]} 32... Nxd4 {[%clk 0:00:13.3]} 33. Bxd4 {[%clk 0:00:09.1]}
33... Ne6 {[%clk 0:00:13.7]} 34. Bc3 {[%clk 0:00:08.4]} 34... Nf4 {[%clk
0:00:12.1]} 35. Qf3 {[%clk 0:00:07]} 35... Ne6 {[%clk 0:00:11]} 36. g3 {[%clk
0:00:05.5]} 36... Rc5 {[%clk 0:00:11.2]} 37. Bf1 {[%clk 0:00:03.6]} 37... h4
{[%clk 0:00:11.5]} 38. Qe4 {[%clk 0:00:02.4]} 38... hxg3 {[%clk 0:00:11.4]} 39.
fxg3 {[%clk 0:00:03.3]} 39... Qg5 {[%clk 0:00:09.8]} 40. Kh2 {[%clk 0:00:03.1]}
40... Qd8 {[%clk 0:00:07.5]} 41. h4 {[%clk 0:00:03.5]} 41... b5 {[%clk
0:00:07.7]} 42. Bh3 {[%clk 0:00:02.9]} 42... b4 {[%clk 0:00:07.7]} 43. Bd2
{[%clk 0:00:03.6]} 43... Qc8 {[%clk 0:00:06.4]} 44. Bf4 {[%clk 0:00:01.9]} 44...
Rc2+ {[%clk 0:00:06.2]} 45. Re2 {[%clk 0:00:02]} 45... Rc4 {[%clk 0:00:04.5]}
46. Qf3 {[%clk 0:00:01.9]} 46... Qd8 {[%clk 0:00:03.5]} 47. Bxe6 {[%clk
0:00:02]} 47... fxe6 {[%clk 0:00:04.4]} 48. Qg4 {[%clk 0:00:02.2]} 48... Qe8
{[%clk 0:00:03.9]} 49. Rd2 {[%clk 0:00:02.3]} 49... Qd7 {[%clk 0:00:03]} 50.
Qxg6 {[%clk 0:00:02]} 50... Kh8 {[%clk 0:00:03]} 51. Bh6 {[%clk 0:00:02.2]}
51... Bxh6 {[%clk 0:00:02.4]} 52. Qxh6+ {[%clk 0:00:03.1]} 52... Kg8 {[%clk
0:00:03.2]} 53. Qg6+ {[%clk 0:00:03.5]} 53... Kh8 {[%clk 0:00:03.5]} 54. Rf2
{[%clk 0:00:04]} 54... Rc8 {[%clk 0:00:03.6]} 55. Rf7 {[%clk 0:00:04]} 1-0

[Event "Early-Titled-Tuesday-Blitz-January-16-2024"]
[Site "Chess.com"]
[Date "2024.01.16"]
[Round "7"]
[White "effefe"]
[Black "ural58"]
[Result "0-1"]
[WhiteElo "2308"]
[BlackElo "2492"]
[TimeControl "180+1"]
[EndTime "9:23:06 PST"]
[Termination "ural58 won by checkmate"]

1. d4 {[%clk 0:02:57.4]} 1... d5 {[%clk 0:02:59.7]} 2. c4 {[%clk 0:02:57.7]}
2... e5 {[%clk 0:02:57.1]} 3. cxd5 {[%clk 0:02:52]} 3... Qxd5 {[%clk 0:02:48.9]}
4. e3 {[%clk 0:02:49.7]} 4... exd4 {[%clk 0:02:48.5]} 5. exd4 {[%clk 0:02:50]}
5... Nc6 {[%clk 0:02:48.2]} 6. Nf3 {[%clk 0:02:49.6]} 6... Bg4 {[%clk 0:02:48]}
7. Be3 {[%clk 0:02:49.7]} 7... Bxf3 {[%clk 0:02:47]} 8. gxf3 {[%clk 0:02:40.4]}
8... O-O-O {[%clk 0:02:44.3]} 9. Nc3 {[%clk 0:02:39.7]} 9... Bb4 {[%clk
0:02:32.7]} 10. a3 {[%clk 0:02:31.6]} 10... Bxc3+ {[%clk 0:02:32.1]} 11. bxc3
{[%clk 0:02:31.6]} 11... Nf6 {[%clk 0:02:31.3]} 12. Bg2 {[%clk 0:02:26.2]} 12...
Na5 {[%clk 0:02:27.2]} 13. O-O {[%clk 0:02:23.6]} 13... Nc4 {[%clk 0:02:26.8]}
14. Bc1 {[%clk 0:02:00]} 14... Rhe8 {[%clk 0:02:24.2]} 15. Qd3 {[%clk
0:01:43.6]} 15... Nd6 {[%clk 0:02:12.3]} 16. Bf4 {[%clk 0:01:26.6]} 16... Qc4
{[%clk 0:02:11.2]} 17. Qc2 {[%clk 0:01:13.5]} 17... Re2 {[%clk 0:02:09.9]} 18.
Qc1 {[%clk 0:01:07.2]} 18... Rde8 {[%clk 0:02:09.9]} 19. Rb1 {[%clk 0:00:59.5]}
19... Nf5 {[%clk 0:01:54.7]} 20. Rb4 {[%clk 0:00:41.9]} 20... Qd3 {[%clk
0:01:51.3]} 21. Rb2 {[%clk 0:00:11.2]} 21... Nd5 {[%clk 0:01:47.3]} 22. Be5
{[%clk 0:00:01.6]} 22... Rxb2 {[%clk 0:01:45.5]} 23. Qxb2 {[%clk 0:00:01.5]}
23... Qxc3 {[%clk 0:01:41.2]} 24. Qa2 {[%clk 0:00:01.1]} 24... c6 {[%clk
0:01:38.2]} 25. Bh3 {[%clk 0:00:01.5]} 25... g6 {[%clk 0:01:37.2]} 26. Bg2
{[%clk 0:00:01.7]} 26... Nh4 {[%clk 0:01:35.9]} 27. Bg3 {[%clk 0:00:01.7]} 27...
Nxg2 {[%clk 0:01:34.3]} 28. Kxg2 {[%clk 0:00:02.6]} 28... Re1 {[%clk 0:01:30.1]}
29. Rxe1 {[%clk 0:00:02.3]} 29... Qxe1 {[%clk 0:01:30.4]} 30. Qc2 {[%clk
0:00:02.4]} 30... f5 {[%clk 0:01:22.7]} 31. Qc5 {[%clk 0:00:02.5]} 31... f4
{[%clk 0:01:12.8]} 32. Qf8+ {[%clk 0:00:02.9]} 32... Kc7 {[%clk 0:01:13]} 33.
Bxf4+ {[%clk 0:00:03.7]} 33... Nxf4+ {[%clk 0:01:13]} 34. Qxf4+ {[%clk
0:00:04.6]} 34... Kb6 {[%clk 0:01:12.4]} 35. Qd6 {[%clk 0:00:04.7]} 35... Qc3
{[%clk 0:01:05.6]} 36. Qd8+ {[%clk 0:00:04.5]} 36... Ka6 {[%clk 0:01:05.6]} 37.
Qd6 {[%clk 0:00:04.8]} 37... Qc4 {[%clk 0:01:02.5]} 38. h4 {[%clk 0:00:04.1]}
38... Qd5 {[%clk 0:01:00.1]} 39. Qb4 {[%clk 0:00:02.7]} 39... b5 {[%clk
0:00:59.7]} 40. Qe7 {[%clk 0:00:02.8]} 40... Qxd4 {[%clk 0:00:56.6]} 41. Qxh7
{[%clk 0:00:03.2]} 41... Qf6 {[%clk 0:00:56.1]} 42. Kg3 {[%clk 0:00:02.6]} 42...
c5 {[%clk 0:00:53.7]} 43. Qc7 {[%clk 0:00:02.4]} 43... c4 {[%clk 0:00:52.4]} 44.
Qc8+ {[%clk 0:00:02.4]} 44... Ka5 {[%clk 0:00:52.2]} 45. Qc5 {[%clk 0:00:03]}
45... a6 {[%clk 0:00:47]} 46. Qb4+ {[%clk 0:00:02.9]} 46... Kb6 {[%clk
0:00:47.2]} 47. f4 {[%clk 0:00:02.9]} 47... Qc6 {[%clk 0:00:44.3]} 48. Qc3
{[%clk 0:00:02.8]} 48... a5 {[%clk 0:00:44.1]} 49. Kg4 {[%clk 0:00:02.6]} 49...
Qg2+ {[%clk 0:00:38.2]} 50. Qg3 {[%clk 0:00:01.4]} 50... Qxg3+ {[%clk
0:00:38.3]} 51. fxg3 {[%clk 0:00:02]} 51... c3 {[%clk 0:00:38.9]} 52. h5 {[%clk
0:00:02.7]} 52... gxh5+ {[%clk 0:00:38.3]} 53. Kxh5 {[%clk 0:00:03.6]} 53... c2
{[%clk 0:00:38.9]} 54. f5 {[%clk 0:00:04.4]} 54... c1=Q {[%clk 0:00:39.8]} 55.
f6 {[%clk 0:00:05]} 55... Qc5+ {[%clk 0:00:36]} 56. Kg6 {[%clk 0:00:05.3]} 56...
Qxa3 {[%clk 0:00:35.3]} 57. g4 {[%clk 0:00:05.9]} 57... Qf8 {[%clk 0:00:33.4]}
58. g5 {[%clk 0:00:05.7]} 58... b4 {[%clk 0:00:33.4]} 59. Kf5 {[%clk 0:00:06.4]}
59... b3 {[%clk 0:00:33.5]} 60. g6 {[%clk 0:00:07.3]} 60... b2 {[%clk
0:00:33.5]} 61. g7 {[%clk 0:00:08.2]} 61... b1=Q+ {[%clk 0:00:33.7]} 62. Ke6
{[%clk 0:00:08.8]} 62... Qe4+ {[%clk 0:00:31.7]} 63. Kd7 {[%clk 0:00:08]} 63...
Qc6# {[%clk 0:00:31.2]} 0-1

[Event "Early-Titled-Tuesday-Blitz-January-16-2024"]
[Site "Chess.com"]
[Date "2024.01.16"]
[Round "7"]
[White "R2D2PTY"]
[Black "maurovargas01"]
[Result "1-0"]
[WhiteElo "2231"]
[BlackElo "1850"]
[TimeControl "180+1"]
[EndTime "9:23:07 PST"]
[Termination "R2D2PTY won on time"]

1. e4 {[%clk 0:03:00.9]} 1... d5 {[%clk 0:03:00]} 2. exd5 {[%clk 0:03:00.9]}
2... Qxd5 {[%clk 0:03:00.9]} 3. Nc3 {[%clk 0:03:01.8]} 3... Qa5 {[%clk 0:03:01]}
4. Nf3 {[%clk 0:03:02.4]} 4... Nf6 {[%clk 0:02:59.9]} 5. d4 {[%clk 0:03:02.8]}
5... c6 {[%clk 0:02:59.9]} 6. Ne5 {[%clk 0:03:01.8]} 6... Bf5 {[%clk 0:02:58.3]}
7. Bc4 {[%clk 0:02:52.3]} 7... e6 {[%clk 0:02:57.9]} 8. g4 {[%clk 0:02:52.2]}
8... Be4 {[%clk 0:02:53.6]} 9. O-O {[%clk 0:02:47.3]} 9... Bd5 {[%clk
0:02:47.4]} 10. Bd3 {[%clk 0:02:23.3]} 10... Bd6 {[%clk 0:02:41.5]} 11. g5
{[%clk 0:02:16.9]} 11... Nfd7 {[%clk 0:02:38.4]} 12. f4 {[%clk 0:01:52.3]} 12...
Nxe5 {[%clk 0:02:23.6]} 13. fxe5 {[%clk 0:01:50.3]} 13... Be7 {[%clk 0:02:20.4]}
14. Qh5 {[%clk 0:01:38.4]} 14... g6 {[%clk 0:02:13.7]} 15. Qh4 {[%clk
0:01:28.8]} 15... Nd7 {[%clk 0:02:04.5]} 16. a3 {[%clk 0:01:13.1]} 16... Qb6
{[%clk 0:02:03.7]} 17. Nxd5 {[%clk 0:01:07.5]} 17... cxd5 {[%clk 0:01:59.7]} 18.
Qf2 {[%clk 0:01:04.2]} 18... Rf8 {[%clk 0:01:52.3]} 19. a4 {[%clk 0:00:58.1]}
19... a5 {[%clk 0:01:49.7]} 20. c3 {[%clk 0:00:57]} 20... Nxe5 {[%clk
0:01:48.1]} 21. Bb5+ {[%clk 0:00:37.9]} 21... Nc6 {[%clk 0:01:43.9]} 22. Bf4
{[%clk 0:00:35.3]} 22... O-O-O {[%clk 0:01:35.8]} 23. Rfc1 {[%clk 0:00:25.6]}
23... Bd6 {[%clk 0:01:34.6]} 24. b4 {[%clk 0:00:21.1]} 24... axb4 {[%clk
0:01:29.8]} 25. cxb4 {[%clk 0:00:19.9]} 25... Bxf4 {[%clk 0:01:07.2]} 26. Qxf4
{[%clk 0:00:16.7]} 26... Kd7 {[%clk 0:00:47]} 27. Bxc6+ {[%clk 0:00:10.4]} 27...
bxc6 {[%clk 0:00:45.2]} 28. b5 {[%clk 0:00:10.6]} 28... Rc8 {[%clk 0:00:43.5]}
29. bxc6+ {[%clk 0:00:09.9]} 29... Rxc6 {[%clk 0:00:42.2]} 30. Rcb1 {[%clk
0:00:10.1]} 30... Qa7 {[%clk 0:00:22.9]} 31. a5 {[%clk 0:00:10.4]} 31... Rc4
{[%clk 0:00:21.1]} 32. Rd1 {[%clk 0:00:10.5]} 32... Ke7 {[%clk 0:00:19.8]} 33.
Qf6+ {[%clk 0:00:10.2]} 33... Kd7 {[%clk 0:00:19.6]} 34. Rab1 {[%clk 0:00:09.4]}
34... Rc7 {[%clk 0:00:13.3]} 35. Rb5 {[%clk 0:00:06.6]} 35... Qa6 {[%clk
0:00:12.7]} 36. Rbb1 {[%clk 0:00:03.8]} 36... Qxa5 {[%clk 0:00:12]} 37. Qg7
{[%clk 0:00:04.3]} 37... Qa8 {[%clk 0:00:08.7]} 38. Rf1 {[%clk 0:00:04.5]} 38...
Qa4 {[%clk 0:00:06.9]} 39. Rxf7+ {[%clk 0:00:03.6]} 39... Rxf7 {[%clk
0:00:06.4]} 40. Qxf7+ {[%clk 0:00:04.5]} 40... Kd6 {[%clk 0:00:06.3]} 41. Rb6+
{[%clk 0:00:01.6]} 41... Rc6 {[%clk 0:00:05.2]} 42. Qf8+ {[%clk 0:00:02.2]}
42... Kc7 {[%clk 0:00:03.8]} 43. Rxc6+ {[%clk 0:00:02.3]} 43... Kxc6 {[%clk
0:00:03.8]} 44. Qf7 {[%clk 0:00:02.3]} 44... Kd6 {[%clk 0:00:02.9]} 45. Qf4+
{[%clk 0:00:02]} 1-0